bitfinex/quotes_BTCUSD_20250525
["timestamp","ask_amount","ask_price","bid_price","bid_amount"]
[1748170904183,0.03861282,106670.0,106660.0,1.21974656]
[1748170904398,0.00611282,106670.0,106660.0,1.21974656]
[1748170904606,0.00611282,106670.0,106660.0,1.23428741]
[1748170905427,0.03671282,106670.0,106660.0,0.80229556]
[1748170905636,0.03671282,106670.0,106660.0,1.11841556]
[1748170906087,0.03671282,106670.0,106660.0,1.41041556]
[1748170906304,0.03671282,106670.0,106660.0,1.11841556]
[1748170906879,0.03671282,106670.0,106660.0,1.43681256]
[1748170907180,0.03671282,106670.0,106660.0,1.11841556]
[1748170907963,0.03671282,106670.0,106660.0,1.43681256]
[1748170908159,0.03671282,106670.0,106660.0,1.11841556]
[1748170908342,0.03671282,106670.0,106660.0,1.09034556]
[1748170910213,0.03671282,106670.0,106660.0,0.94070556]
[1748170910423,0.03671282,106670.0,106660.0,0.34468]
[1748170910632,0.03671282,106670.0,106660.0,0.6608]
[1748170911469,0.04561347,106670.0,106660.0,0.34468]
[1748170911676,0.04461347,106670.0,106660.0,0.6558]
[1748170912718,0.13415903,106670.0,106660.0,0.50616]
[1748170913148,0.13415903,106670.0,106660.0,0.50316]
[1748170913331,0.13415903,106670.0,106660.0,0.50516]
[1748170913548,0.13415903,106670.0,106660.0,0.50716]
[1748170913755,0.13415903,106670.0,106660.0,0.50516]
[1748170913953,0.13615903,106670.0,106660.0,0.50316]
[1748170914303,0.13715903,106670.0,106660.0,0.50316]
[1748170916065,0.04761347,106670.0,106660.0,0.50316]
[1748170916652,0.03871282,106670.0,106660.0,0.50316]
[1748170916962,0.03771282,106670.0,106660.0,0.50316]
[1748170917162,0.03771282,106670.0,106660.0,0.65268]
[1748170917371,0.03571282,106670.0,106660.0,0.65268]
[1748170919689,0.03571282,106670.0,106660.0,0.99268]
[1748170923602,0.00511282,106670.0,106660.0,1.08222556]
[1748170926036,0.00511282,106670.0,106660.0,1.69121356]
[1748170926257,0.00511282,106670.0,106660.0,1.54840256]
[1748170927460,0.00511282,106670.0,106660.0,1.48335756]
[1748170928454,0.00511282,106670.0,106660.0,1.46782456]
[1748170931755,0.00511282,106670.0,106660.0,1.51376541]
[1748170933836,0.00511282,106670.0,106660.0,1.51576541]
[1748170934014,0.00511282,106670.0,106660.0,1.51376541]
[1748170934413,0.00511282,106670.0,106660.0,1.51576541]
[1748170935570,0.00511282,106670.0,106660.0,1.51776541]
[1748170936085,0.00511282,106670.0,106660.0,1.51576541]
[1748170936552,0.00511282,106670.0,106660.0,1.51776541]
[1748170937031,0.00511282,106670.0,106660.0,1.10076641]
[1748170937240,0.00511282,106670.0,106660.0,1.22094441]
[1748170937489,0.00511282,106670.0,106660.0,1.53694441]
[1748170943553,0.00511282,106670.0,106660.0,1.38730441]
[1748170943818,0.00511282,106670.0,106660.0,1.23332941]
[1748170945590,0.03581282,106670.0,106660.0,0.93658556]
[1748170945791,0.03581282,106670.0,106660.0,1.19161456]
[1748170947174,0.03581282,106670.0,106660.0,1.08622556]
[1748170947836,0.03581282,106670.0,106660.0,1.41100256]
[1748170949500,0.00511282,106670.0,106660.0,1.41100256]
[1748170951321,0.00511282,106670.0,106660.0,1.41076256]
[1748170951738,0.00511282,106670.0,106660.0,1.09500256]
[1748170952065,0.00511282,106670.0,106660.0,1.41076256]
[1748170952910,0.03631282,106670.0,106660.0,1.40745456]
[1748170953291,0.03631282,106670.0,106660.0,1.39593456]
[1748170954315,0.00511282,106670.0,106660.0,1.39593456]
[1748170955358,0.00511282,106670.0,106660.0,1.41047541]
[1748170957854,0.03631282,106670.0,106660.0,1.41047541]
[1748170959119,0.02121282,106670.0,106660.0,1.41047541]
[1748170959478,0.03631282,106670.0,106660.0,1.41047541]
[1748170961426,0.00511282,106670.0,106660.0,1.41047541]
[1748170963270,0.00511282,106670.0,106660.0,1.42607541]
[1748170963981,0.00511282,106670.0,106660.0,1.41047541]
[1748170964212,0.00511282,106670.0,106660.0,1.44157541]
[1748170965995,0.00511282,106670.0,106660.0,1.85747541]
[1748170967786,0.00511282,106670.0,106660.0,1.86747541]
[1748170968004,0.00511282,106670.0,106660.0,1.88133244]
[1748170969277,0.00511282,106670.0,106660.0,1.85023244]
[1748170969913,0.00511282,106670.0,106660.0,1.87830144]
[1748170975989,0.00511282,106670.0,106660.0,1.89380144]
[1748170976539,0.00511282,106670.0,106660.0,1.90890144]
[1748170978003,0.00511282,106670.0,106660.0,1.89180144]
[1748170978207,0.00511282,106670.0,106660.0,1.87630144]
[1748170979194,0.00511282,106670.0,106660.0,1.55854144]
[1748170979400,0.00511282,106670.0,106660.0,1.87702144]
[1748170979602,0.00511282,106670.0,106660.0,1.87902144]
[1748170979809,0.00511282,106670.0,106660.0,1.87602144]
[1748170980197,0.00511282,106670.0,106660.0,1.87902144]
[1748170980631,0.03651282,106670.0,106660.0,1.87902144]
[1748170981020,0.02111282,106670.0,106660.0,1.87902144]
[1748170984124,0.03651282,106670.0,106660.0,1.13764144]
[1748170984324,0.03651282,106670.0,106660.0,1.43858059]
[1748170984536,0.03651282,106670.0,106660.0,1.41051159]
[1748170984747,0.03651282,106670.0,106660.0,1.39665456]
[1748170984972,0.03651282,106670.0,106660.0,0.59706556]
[1748170985192,0.03651282,106670.0,106660.0,0.50752]
[1748170985398,0.03651282,106670.0,106660.0,0.65716]
[1748170985822,0.03651282,106670.0,106660.0,0.65416]
[1748170986266,0.04541708,106670.0,106660.0,0.65716]
[1748170986717,0.04541708,106670.0,106660.0,0.65416]
[1748170987097,0.04541708,106670.0,106660.0,0.65516]
[1748170987337,0.04541708,106670.0,106660.0,0.99316]
[1748170988207,0.04541708,106670.0,106660.0,0.84452]
[1748170988436,0.04541708,106670.0,106660.0,0.99416]
[1748170989736,0.13496264,106670.0,106660.0,0.50456]
[1748170990174,0.0315,106650.0,106640.0,0.01582236]
[1748170990400,0.0315,106650.0,106640.0,0.67134236]
[1748170990839,0.0305,106650.0,106640.0,0.35582236]
[1748170991018,0.0305,106650.0,106640.0,0.68008051]
[1748170991407,0.0305,106650.0,106640.0,0.36456051]
[1748170991608,0.0305,106650.0,106640.0,0.53244051]
[1748170991816,0.0305,106650.0,106640.0,0.68008051]
[1748170992128,0.0305,106650.0,106640.0,0.19144051]
[1748170992336,0.0295,106650.0,106640.0,0.34108051]
[1748170993128,0.0295,106650.0,106640.0,0.34208051]
[1748170995683,0.0295,106650.0,106640.0,0.19244051]
[1748170995991,0.0295,106650.0,106640.0,0.34212051]
[1748170996127,0.0295,106650.0,106640.0,0.19244051]
[1748170996346,0.11904556,106650.0,106640.0,0.34212051]
[1748170997426,0.11904556,106650.0,106640.0,0.34112051]
[1748170997638,0.12204556,106650.0,106640.0,0.34212051]
[1748170998443,0.12204556,106650.0,106640.0,0.01682236]
[1748170998653,0.12204556,106650.0,106630.0,0.33672]
[1748170998654,0.0302869,106640.0,106630.0,0.33672]
[1748170998872,0.11883246,106640.0,106630.0,0.33672]
[1748170999286,0.12768501,106640.0,106630.0,0.33672]
[1748171000733,0.12868501,106640.0,106630.0,0.33672]
[1748171001311,0.03913945,106640.0,106630.0,0.4864]
[1748171001536,0.04113945,106640.0,106630.0,0.4874]
[1748171001954,0.0189,106640.0,106630.0,0.8274]
[1748171002372,0.0219,106640.0,106630.0,0.8361034]
[1748171002987,0.0373,106640.0,106630.0,0.8361034]
[1748171003201,0.0373,106640.0,106630.0,0.6864234]
[1748171003406,0.0373,106640.0,106630.0,0.8361434]
[1748171013712,0.0219,106640.0,106630.0,0.8361434]
[1748171013917,0.006,106640.0,106630.0,0.8361434]
[1748171014114,0.0211,106640.0,106630.0,0.8361434]
[1748171014938,0.02997836,106640.0,106630.0,0.8361434]
[1748171015377,0.04587836,106640.0,106630.0,0.8361434]
[1748171016351,0.02997836,106640.0,106630.0,0.8361434]
[1748171017065,0.02997836,106640.0,106630.0,1.0017434]
[1748171018367,0.01487836,106640.0,106630.0,1.0017434]
[1748171019468,0.01487836,106640.0,106630.0,1.0174434]
[1748171019891,0.006,106640.0,106630.0,1.0174434]
[1748171020688,0.003,106640.0,106630.0,1.00774]
[1748171021107,0.004,106640.0,106630.0,1.00774]
[1748171021623,0.001,106640.0,106630.0,1.00774]
[1748171021894,0.002,106640.0,106630.0,2.58386741]
[1748171022090,0.002,106640.0,106630.0,4.32807141]
[1748171022294,0.002,106640.0,106630.0,3.59445341]
[1748171022511,0.001,106640.0,106630.0,3.37794941]
[1748171022722,0.002,106640.0,106630.0,3.37794941]
[1748171023145,0.002,106640.0,106630.0,2.81962641]
[1748171023375,0.002,106640.0,106630.0,2.71332441]
[1748171023812,0.002,106640.0,106630.0,2.72332441]
[1748171024746,0.01625803,106670.0,106650.0,0.04764085]
[1748171024976,0.00511282,106670.0,106660.0,0.40486556]
[1748171025200,0.02041282,106670.0,106660.0,0.40486556]
[1748171026609,0.02641282,106670.0,106660.0,0.40586556]
[1748171026812,0.02641282,106670.0,106660.0,0.40582556]
[1748171027299,0.01111282,106670.0,106660.0,1.06557941]
[1748171027726,0.01111282,106670.0,106660.0,1.09164426]
[1748171028108,0.00811282,106670.0,106660.0,1.09164426]
[1748171028589,0.04812987,106710.0,106680.0,0.03104085]
[1748171028792,0.04812987,106710.0,106690.0,0.99434273]
[1748171028996,0.04812987,106710.0,106690.0,0.992]
[1748171029233,0.06322987,106710.0,106690.0,0.992]
[1748171029442,0.0153,106700.0,106690.0,0.992]
[1748171029857,0.0153,106700.0,106690.0,0.99204118]
[1748171031617,0.005,106710.0,106690.0,1.00734118]
[1748171031848,0.003,106710.0,106700.0,0.0176426]
[1748171032079,0.003,106710.0,106700.0,0.10718816]
[1748171032768,0.03282987,106720.0,106700.0,0.10718816]
[1748171033000,0.001,106710.0,106700.0,0.10718816]
[1748171033214,0.002,106710.0,106700.0,1.96347116]
[1748171033434,0.002,106710.0,106700.0,1.96112856]
[1748171033677,0.004,106710.0,106700.0,1.70837141]
[1748171033900,0.004,106710.0,106700.0,1.54515041]
[1748171034359,0.003,106710.0,106700.0,1.88515041]
[1748171034847,0.002,106720.0,106700.0,1.89791241]
[1748171035064,0.002,106720.0,106710.0,2.8268685]
[1748171035279,0.002,106720.0,106710.0,2.82452641]
[1748171035720,0.002,106720.0,106710.0,2.08438741]
[1748171035939,0.04902987,106740.0,106720.0,0.34]
[1748171036174,0.04902987,106740.0,106730.0,0.31750209]
[1748171036387,0.0162,106740.0,106730.0,0.31516]
[1748171036851,0.06422987,106760.0,106740.0,0.34]
[1748171037078,0.06422987,106760.0,106750.0,0.33668]
[1748171037525,0.06473455,106760.0,106750.0,0.33668]
[1748171038001,0.06473455,106760.0,106750.0,0.48632]
[1748171038952,0.06973455,106760.0,106750.0,0.48732]
[1748171039155,0.07373455,106760.0,106750.0,0.48732]
[1748171039446,0.07373455,106760.0,106750.0,0.65252]
[1748171039709,0.04090468,106760.0,106750.0,0.65252]
[1748171040170,0.04085779,106760.0,106750.0,0.65252]
[1748171042575,0.13040335,106760.0,106750.0,0.33768]
[1748171042795,0.0152,106750.0,106740.0,0.1652]
[1748171043008,0.2106594,106750.0,106740.0,0.1652]
[1748171043278,0.1806594,106750.0,106740.0,0.1652]
[1748171043517,0.1958594,106750.0,106740.0,0.1652]
[1748171043842,0.0312,106740.0,106710.0,0.3366]
[1748171043843,0.1646594,106750.0,106740.0,0.16516]
[1748171044041,0.08954556,106750.0,106710.0,0.3366]
[1748171044246,0.0312,106730.0,106720.0,0.31476]
[1748171044446,0.12074556,106730.0,106720.0,0.31476]
[1748171044845,0.0312,106720.0,106680.0,0.03752259]
[1748171045051,0.08954556,106730.0,106680.0,0.03752259]
[1748171045052,0.11974556,106710.0,106700.0,0.33656]
[1748171046081,0.11974556,106710.0,106700.0,0.33660118]
[1748171046673,0.11974556,106710.0,106700.0,4.118e-05]
[1748171046888,0.0318,106690.0,106680.0,0.003]
[1748171047095,0.12134556,106690.0,106680.0,0.00312378]
[1748171047517,0.12134556,106690.0,106680.0,0.00012378]
[1748171047742,0.12134556,106690.0,106680.0,0.16532378]
[1748171048182,0.12134556,106690.0,106680.0,0.00012378]
[1748171048396,0.1331707,106690.0,106680.0,0.31592378]
[1748171048616,0.1371707,106690.0,106680.0,0.31692378]
[1748171049078,0.1331707,106690.0,106680.0,0.31592378]
[1748171049294,0.1301707,106690.0,106680.0,0.31492378]
[1748171049527,0.1331707,106690.0,106680.0,0.31592378]
[1748171050530,0.1381707,106690.0,106680.0,0.31692378]
[1748171050740,0.1351707,106690.0,106680.0,0.31592378]
[1748171050945,0.1411707,106690.0,106680.0,0.31692378]
[1748171051600,0.1411707,106690.0,106680.0,0.32692378]
[1748171053540,0.1411707,106690.0,106680.0,0.32700378]
[1748171054998,0.05162514,106690.0,106680.0,0.32700378]
[1748171055220,0.03622514,106690.0,106680.0,0.32700378]
[1748171055638,0.01982514,106690.0,106680.0,0.66700378]
[1748171056283,0.011,106690.0,106680.0,0.66700378]
[1748171057985,0.011,106690.0,106680.0,0.75654934]
[1748171058180,0.011,106690.0,106680.0,0.77154934]
[1748171058378,0.005,106690.0,106680.0,0.95562919]
[1748171058811,0.009,106690.0,106680.0,0.95662919]
[1748171059045,0.009,106690.0,106680.0,0.97272919]
[1748171059936,0.004,106690.0,106680.0,0.97172919]
[1748171060328,0.008,106690.0,106680.0,0.97272919]
[1748171060567,0.008,106690.0,106680.0,0.97172919]
[1748171060751,0.004,106690.0,106680.0,0.97272919]
[1748171061193,0.009,106690.0,106680.0,0.97372919]
[1748171061618,0.005,106690.0,106680.0,0.97172919]
[1748171061825,0.005,106690.0,106680.0,0.97472919]
[1748171062201,0.07511384,106720.0,106690.0,0.01454085]
[1748171062411,0.07511384,106720.0,106700.0,0.10504556]
[1748171062617,0.07511384,106720.0,106710.0,0.31488]
[1748171063019,0.07511384,106720.0,106710.0,0.65488]
[1748171063257,0.07511384,106720.0,106710.0,0.50524]
[1748171063485,0.07511384,106720.0,106710.0,0.65488]
[1748171063702,0.0164,106730.0,106710.0,0.65488]
[1748171064021,0.002,106720.0,106710.0,0.65488]
[1748171064527,0.005,106720.0,106710.0,0.65488]
[1748171070067,0.005,106720.0,106710.0,0.42954556]
[1748171070286,0.0202,106720.0,106710.0,0.6546]
[1748171070748,0.0202,106720.0,106710.0,0.6646]
[1748171071851,0.12494556,106720.0,106710.0,0.01]
[1748171072486,0.14494741,106720.0,106710.0,0.01]
[1748171072894,0.14294741,106720.0,106710.0,0.01]
[1748171073168,0.13994741,106720.0,106710.0,0.01]
[1748171073545,0.14094741,106720.0,106710.0,0.01]
[1748171073756,0.14594741,106720.0,106710.0,0.011]
[1748171073959,0.14494741,106720.0,106710.0,0.011]
[1748171074154,0.14894741,106720.0,106710.0,0.012]
[1748171075051,0.14974741,106720.0,106710.0,0.14964]
[1748171075262,0.1386022,106720.0,106710.0,0.14964]
[1748171076521,0.0319,106700.0,106680.0,0.01012378]
[1748171076723,0.08954556,106710.0,106690.0,0.31464]
[1748171077151,0.0319,106700.0,106690.0,0.31464]
[1748171077566,0.04075664,106700.0,106690.0,0.31464]
[1748171078612,0.0319,106700.0,106690.0,0.31464]
[1748171078902,0.0329,106700.0,106690.0,0.31464]
[1748171079299,0.0319,106700.0,106690.0,0.31464]
[1748171079519,0.0369,106700.0,106690.0,0.31464]
[1748171080190,0.0369,106700.0,106690.0,0.65464]
[1748171080851,0.021,106700.0,106690.0,0.65464]
[1748171081277,0.005,106700.0,106690.0,0.65464]
[1748171082809,0.005,106700.0,106690.0,0.74418556]
[1748171083225,0.0368,106700.0,106690.0,0.42954556]
[1748171083461,0.12634556,106700.0,106690.0,0.165]
[1748171083898,0.12134556,106700.0,106690.0,0.165]
[1748171084329,0.1571545,106700.0,106690.0,0.165]
[1748171085425,0.14500929,106700.0,106690.0,0.165]
[1748171085638,0.14600929,106700.0,106690.0,0.165]
[1748171086011,0.14500929,106700.0,106690.0,0.31464]
[1748171086227,0.15300929,106700.0,106690.0,0.31664]
[1748171086650,0.13822216,106700.0,106690.0,0.31664]
[1748171087477,0.13822216,106700.0,106690.0,0.31668]
[1748171088302,0.14931445,106700.0,106690.0,0.012]
[1748171088518,0.14931445,106700.0,106690.0,0.32668]
[1748171089840,0.13822216,106700.0,106690.0,0.32668]
[1748171090054,0.0320766,106700.0,106690.0,0.32668]
[1748171091308,0.0232,106700.0,106690.0,0.32668]
[1748171093002,0.008,106700.0,106690.0,0.32668]
[1748171093741,0.008,106700.0,106690.0,0.66668]
[1748171094622,0.008,106700.0,106690.0,0.68258]
[1748171095184,0.004,106700.0,106690.0,0.68158]
[1748171095457,0.007,106700.0,106690.0,0.68258]
[1748171095857,0.003,106700.0,106690.0,0.68158]
[1748171096143,0.003,106700.0,106690.0,0.34158]
[1748171096400,0.006,106700.0,106690.0,0.34258]
[1748171096615,0.009,106700.0,106690.0,0.34358]
[1748171099316,0.009,106700.0,106690.0,0.35284947]
[1748171100509,0.009,106700.0,106690.0,0.0289]
[1748171100738,0.009,106700.0,106690.0,0.3276]
[1748171101007,0.009,106700.0,106690.0,0.44884556]
[1748171101436,0.009,106700.0,106690.0,1.38800041]
[1748171101671,0.009,106700.0,106690.0,1.19439141]
[1748171101886,0.006,106700.0,106690.0,1.20263803]
[1748171102318,0.006,106700.0,106690.0,1.20363803]
[1748171102555,0.14942313,106740.0,106690.0,1.16993803]
[1748171102806,0.25546869,106740.0,106710.0,0.0153]
[1748171103046,0.23986869,106740.0,106720.0,0.31694232]
[1748171103251,0.15032313,106740.0,106730.0,0.33664]
[1748171103480,0.13333271,106740.0,106730.0,0.33664]
[1748171103705,0.08400284,106740.0,106730.0,0.33664]
[1748171104348,0.08400284,106740.0,106730.0,0.33676378]
[1748171104349,0.008889,106740.0,106730.0,0.33676378]
[1748171104991,0.008889,106740.0,106730.0,0.67676378]
[1748171105196,0.012889,106740.0,106730.0,0.67676378]
[1748171105396,0.015889,106740.0,106730.0,0.67676378]
[1748171105601,0.008889,106740.0,106730.0,0.67676378]
[1748171105813,0.014889,106740.0,106730.0,0.67776378]
[1748171106019,0.019889,106740.0,106730.0,0.67876378]
[1748171106230,0.011,106740.0,106730.0,0.67876378]
[1748171107939,0.0431,106740.0,106730.0,0.67876378]
[1748171108150,0.13264556,106740.0,106730.0,0.16704378]
[1748171109167,0.13264556,106740.0,106730.0,0.00212378]
[1748171109352,0.13264556,106740.0,106730.0,0.16704378]
[1748171109764,0.14151398,106740.0,106730.0,0.16704378]
[1748171110405,0.14151398,106740.0,106730.0,0.00212378]
[1748171110612,0.14151398,106740.0,106730.0,0.16704378]
[1748171110814,0.15260627,106740.0,106730.0,0.16704378]
[1748171112044,0.16714712,106740.0,106730.0,0.00212378]
[1748171112180,0.16714712,106740.0,106730.0,0.16704378]
[1748171112403,0.13504712,106740.0,106730.0,0.16492]
[1748171113104,0.0321,106730.0,106710.0,0.3366]
[1748171113308,0.12164556,106720.0,106710.0,0.33665673]
[1748171113774,0.13051398,106720.0,106710.0,0.33665673]
[1748171114180,0.13051398,106720.0,106710.0,0.65117673]
[1748171115397,0.13351398,106720.0,106710.0,0.65117673]
[1748171115818,0.13651398,106720.0,106710.0,0.65117673]
[1748171118036,0.10441398,106720.0,106710.0,0.65117673]
[1748171118595,0.12021398,106720.0,106710.0,0.65117673]
[1748171119280,0.13641398,106720.0,106710.0,0.67665673]
[1748171119457,0.13641398,106720.0,106710.0,0.99117673]
[1748171119661,0.13641398,106720.0,106710.0,0.33665673]
[1748171119827,0.13641398,106720.0,106710.0,0.65117673]
[1748171120034,0.13620447,106720.0,106710.0,0.33665673]
[1748171120247,0.13620447,106720.0,106710.0,0.65117673]
[1748171120983,0.14729676,106720.0,106710.0,0.65117673]
[1748171123560,0.14729676,106720.0,106710.0,0.33665673]
[1748171123757,0.14729676,106720.0,106710.0,0.65121673]
[1748171123996,0.14729676,106720.0,106710.0,0.33665673]
[1748171124199,0.14729676,106720.0,106710.0,0.65121673]
[1748171125762,0.15682832,106720.0,106710.0,0.65121673]
[1748171127108,0.15682832,106720.0,106710.0,0.33665673]
[1748171127109,0.20282832,106720.0,106710.0,0.33665673]
[1748171127314,0.20282832,106720.0,106710.0,0.50157673]
[1748171128141,0.19982832,106720.0,106710.0,0.50157673]
[1748171128554,0.20282832,106720.0,106710.0,0.50257673]
[1748171128755,0.15382832,106720.0,106710.0,0.50157673]
[1748171128953,0.15082832,106720.0,106710.0,0.50157673]
[1748171129179,0.14529676,106720.0,106710.0,0.50257673]
[1748171130179,0.15029676,106720.0,106710.0,0.50357673]
[1748171131836,0.13409676,106720.0,106710.0,0.50357673]
[1748171132266,0.14979676,106720.0,106710.0,0.50357673]
[1748171132417,0.13870447,106720.0,106710.0,0.50357673]
[1748171133633,0.13870447,106720.0,106710.0,0.65321673]
[1748171134402,0.13853895,106720.0,106710.0,0.65321673]
[1748171135204,0.14963124,106720.0,106710.0,0.65321673]
[1748171135817,0.14963124,106720.0,106710.0,0.50345673]
[1748171136689,0.15332608,106720.0,106710.0,0.50345673]
[1748171137275,0.09584085,106700.0,106690.0,0.01]
[1748171137489,0.44716641,106700.0,106690.0,0.01004119]
[1748171137904,0.4858363,106700.0,106690.0,0.01004119]
[1748171138110,0.35454085,106690.0,106660.0,0.1648]
[1748171138319,0.0313,106670.0,106660.0,0.16484118]
[1748171138532,0.11984556,106670.0,106660.0,0.16484118]
[1748171138722,0.13095965,106670.0,106660.0,4.118e-05]
[1748171138928,0.12995965,106670.0,106660.0,0.31448118]
[1748171139146,0.12995965,106670.0,106660.0,0.16484118]
[1748171139355,0.11365965,106670.0,106660.0,0.16484118]
[1748171139561,0.10952807,106670.0,106660.0,0.16484118]
[1748171140173,0.10952807,106670.0,106660.0,0.17584118]
[1748171140576,0.10952807,106670.0,106660.0,0.17484118]
[1748171140787,0.09841398,106670.0,106660.0,0.17484118]
[1748171140983,0.10041398,106670.0,106660.0,0.17484118]
[1748171141366,0.10241398,106670.0,106660.0,0.17584118]
[1748171144854,0.09354556,106670.0,106660.0,0.17584118]
[1748171145512,0.004,106670.0,106660.0,0.19194118]
[1748171146989,0.004,106670.0,106660.0,0.20754118]
[1748171148203,0.004,106670.0,106660.0,0.54754118]
[1748171152196,0.004,106670.0,106660.0,0.68162118]
[1748171152731,0.004,106670.0,106660.0,0.69732118]
[1748171152932,0.004,106670.0,106660.0,0.69736118]
[1748171155881,0.004,106670.0,106660.0,0.78690674]
[1748171156288,0.004,106670.0,106660.0,1.49919574]
[1748171156761,0.004,106670.0,106660.0,0.78690674]
[1748171157603,0.004,106670.0,106660.0,0.36714118]
[1748171157808,0.004,106670.0,106660.0,0.68166118]
[1748171158940,0.004,106670.0,106660.0,0.66556118]
[1748171159151,0.0194,106670.0,106660.0,0.32556118]
[1748171159566,0.0194,106670.0,106660.0,0.66556118]
[1748171160057,0.004,106670.0,106660.0,0.32556118]
[1748171161931,0.004,106670.0,106660.0,1.00228118]
[1748171164131,0.004,106670.0,106660.0,1.01808118]
[1748171164376,0.004,106670.0,106660.0,1.00228118]
[1748171164581,0.004,106670.0,106660.0,1.00212118]
[1748171166336,0.0198,106670.0,106660.0,0.85244118]
[1748171166540,0.0198,106670.0,106660.0,1.00212118]
[1748171167082,0.02869598,106670.0,106660.0,1.00212118]
[1748171167919,0.01289598,106670.0,106660.0,1.00212118]
[1748171168135,0.01289598,106670.0,106660.0,1.01752118]
[1748171168345,0.01289598,106670.0,106660.0,1.00212118]
[1748171169495,0.01289598,106670.0,106660.0,1.03322118]
[1748171170376,0.01289598,106670.0,106660.0,1.01752118]
[1748171170542,0.004,106670.0,106660.0,1.01752118]
[1748171171660,0.004,106670.0,106660.0,0.71886118]
[1748171171925,0.004,106670.0,106660.0,1.03322118]
[1748171174205,0.004,106670.0,106660.0,0.70316118]
[1748171174403,0.10934556,106670.0,106660.0,0.85244118]
[1748171174609,0.12434556,106670.0,106660.0,1.00212118]
[1748171175238,0.10934556,106670.0,106660.0,1.00212118]
[1748171175439,0.09354556,106670.0,106660.0,1.00212118]
[1748171175654,0.10245255,106670.0,106660.0,1.00212118]
[1748171176405,0.11825255,106670.0,106660.0,1.00212118]
[1748171178516,0.10245255,106670.0,106660.0,1.00212118]
[1748171183033,0.01290699,106670.0,106660.0,1.00212118]
[1748171183693,0.01290699,106670.0,106660.0,1.01792118]
[1748171184834,0.004,106670.0,106660.0,1.01792118]
[1748171185041,0.004,106670.0,106660.0,1.00212118]
[1748171186566,0.0204,106670.0,106660.0,1.00212118]
[1748171186934,0.004,106670.0,106660.0,1.00212118]
[1748171187675,0.01291197,106670.0,106660.0,1.00212118]
[1748171188073,0.01291197,106670.0,106660.0,1.01842118]
[1748171189231,0.01291197,106670.0,106660.0,0.69776118]
[1748171189431,0.01291197,106670.0,106660.0,1.01212118]
[1748171190627,0.01291197,106670.0,106660.0,1.02772118]
[1748171191037,0.01291197,106670.0,106660.0,1.01212118]
[1748171191240,0.01291197,106670.0,106660.0,0.69776118]
[1748171191449,0.01291197,106670.0,106660.0,1.01200118]
[1748171191645,0.01291197,106670.0,106660.0,0.69776118]
[1748171191850,0.02901197,106670.0,106660.0,1.01200118]
[1748171193945,0.01291197,106670.0,106660.0,1.01200118]
[1748171194168,0.01291197,106670.0,106660.0,1.02760118]
[1748171195632,0.01291197,106670.0,106660.0,1.01200118]
[1748171197611,0.01291197,106670.0,106660.0,1.02770118]
[1748171201223,0.01291197,106670.0,106660.0,1.04340118]
[1748171201807,0.01291197,106670.0,106660.0,1.02770118]
[1748171202893,0.004,106670.0,106660.0,1.02770118]
[1748171203698,0.004,106670.0,106660.0,1.01200118]
[1748171204301,0.0202,106670.0,106660.0,1.01200118]
[1748171204717,0.004,106670.0,106660.0,1.01200118]
[1748171204929,0.004,106670.0,106660.0,1.02780118]
[1748171205142,0.004,106670.0,106660.0,1.04420118]
[1748171205143,0.01292065,106670.0,106660.0,1.04420118]
[1748171206142,0.004,106670.0,106660.0,1.02780118]
[1748171208380,0.01292076,106670.0,106660.0,1.02780118]
[1748171208731,0.01292076,106670.0,106660.0,0.71356118]
[1748171208942,0.01292076,106670.0,106660.0,1.02780118]
[1748171212341,0.01292076,106670.0,106660.0,1.04380118]
[1748171212949,0.004,106670.0,106660.0,1.04380118]
[1748171213163,0.004,106670.0,106660.0,0.87812118]
[1748171213364,0.004,106670.0,106660.0,1.02780118]
[1748171213940,0.004,106670.0,106660.0,0.71356118]
[1748171214145,0.004,106670.0,106660.0,0.69776118]
[1748171214480,0.004,106670.0,106660.0,1.01200118]
[1748171214894,0.0195,106670.0,106660.0,1.01200118]
[1748171215878,0.004,106670.0,106660.0,1.01200118]
[1748171216356,0.01291833,106670.0,106660.0,1.01200118]
[1748171217933,0.01291833,106670.0,106660.0,1.02840118]
[1748171218346,0.01291833,106670.0,106660.0,1.04460118]
[1748171219140,0.004,106670.0,106660.0,1.04460118]
[1748171219665,0.002,106670.0,106660.0,1.04360118]
[1748171219866,0.05937849,106690.0,106670.0,0.0156]
[1748171220098,0.16542405,106690.0,106680.0,0.14968]
[1748171220447,0.17434145,106690.0,106680.0,0.14968]
[1748171221776,0.14157705,106690.0,106680.0,0.14968]
[1748171222579,0.14457705,106690.0,106680.0,0.15068]
[1748171222707,0.14457705,106690.0,106680.0,0.15168]
[1748171222918,0.14757705,106690.0,106680.0,0.15168]
[1748171223130,0.13646296,106690.0,106680.0,0.15168]
[1748171225488,0.13646296,106690.0,106680.0,0.316]
[1748171227704,0.11996296,106690.0,106680.0,0.656]
[1748171230536,0.13636296,106690.0,106680.0,0.656]
[1748171231081,0.13636296,106690.0,106680.0,0.50632]
[1748171231285,0.13636296,106690.0,106680.0,0.342]
[1748171231497,0.13636296,106690.0,106680.0,0.65596]
[1748171231916,0.0468174,106690.0,106680.0,0.65596]
[1748171232261,0.0149174,106690.0,106680.0,0.67156]
[1748171232488,0.0149174,106690.0,106680.0,0.68766]
[1748171232838,0.0149174,106690.0,106680.0,0.77720556]
[1748171233659,0.0119174,106690.0,106680.0,0.77620556]
[1748171233977,0.003,106690.0,106680.0,0.77620556]
[1748171234908,0.0484644,106710.0,106690.0,0.34]
[1748171235089,0.0649644,106710.0,106700.0,0.14964]
[1748171235501,0.0322,106710.0,106700.0,0.14964]
[1748171236165,0.0362,106710.0,106700.0,0.14964]
[1748171236373,0.04510178,106710.0,106700.0,0.14968118]
[1748171236585,0.02660178,106710.0,106700.0,0.14968118]
[1748171236796,0.01390178,106710.0,106700.0,0.49302403]
[1748171237006,0.01790178,106710.0,106700.0,0.49168118]
[1748171237431,0.01790178,106710.0,106700.0,0.50708118]
[1748171238616,0.009,106710.0,106700.0,0.50708118]
[1748171239679,0.009,106710.0,106700.0,0.84372118]
[1748171241897,0.009,106710.0,106700.0,0.69408118]
[1748171242093,0.009,106710.0,106700.0,0.82832118]
[1748171246087,0.0103,106720.0,106700.0,0.82832118]
[1748171246291,0.0266,106720.0,106710.0,0.16428]
[1748171246894,0.03549181,106720.0,106710.0,0.16428]